bitfinex/quotes_ETHUSD_20250511
["timestamp","ask_amount","ask_price","bid_price","bid_amount"]
[1746948948890,4.76654452,2495.8,2494.8,3.276]
[1746948948891,4.01907491,2495.5,2494.8,3.276]
[1746948949073,4.05366403,2495.5,2494.9,8.0]
[1746948949253,0.0464313,2495.5,2494.9,8.0]
[1746948949454,4.05366385,2495.5,2494.9,8.0]
[1746948949682,4.00753416,2495.3,2494.6,14.418]
[1746948949992,0.77201862,2495.2,2495.0,3.276]
[1746948950587,0.79438912,2495.7,2495.0,3.276]
[1746948950754,0.7598,2495.7,2495.0,3.276]
[1746948950955,4.00771163,2495.2,2495.0,3.276]
[1746948951179,0.01158314,2495.1,2494.7,8.0]
[1746948951356,0.01158314,2495.1,2494.8,3.276]
[1746948951559,0.01158314,2495.1,2494.9,8.0]
[1746948951884,0.79438912,2495.6,2494.9,8.0]
[1746948952085,0.79438912,2495.6,2494.9,8.04007729]
[1746948952397,0.01104314,2495.5,2494.9,8.04007729]
[1746948953678,0.773,2496.2,2495.0,0.55]
[1746948953996,0.01029052,2496.1,2495.4,8.55]
[1746948954202,0.01029052,2496.1,2495.6,8.0]
[1746948954358,0.03458912,2496.8,2495.6,8.0]
[1746948954557,0.00953827,2496.7,2495.7,0.04005501]
[1746948954784,0.00953827,2496.7,2495.6,8.0]
[1746948954970,0.00953827,2496.7,2495.7,0.04005501]
[1746948955569,0.00953827,2496.7,2495.6,8.30026799]
[1746948955770,0.00953827,2496.7,2495.6,0.30026799]
[1746948955969,0.00953827,2496.7,2495.8,8.0]
[1746948956192,0.00953827,2496.7,2495.9,14.42]
[1746948956896,0.773,2496.9,2495.9,14.42]
[1746948957083,0.773,2496.9,2496.0,8.0]
[1746948957291,0.0096031,2496.8,2496.0,8.04005247]
[1746948957492,0.7914,2497.2,2496.0,8.04005247]
[1746948957493,0.7914,2498.1,2496.4,8.0]
[1746948957694,4.00383424,2497.7,2496.5,0.59004352]
[1746948957891,0.2734562,2497.6,2496.1,0.55]
[1746948958081,0.03458912,2497.6,2496.1,0.74674458]
[1746948958270,4.29851074,2497.9,2496.1,0.74674458]
[1746948958271,0.23861058,2497.5,2496.3,8.55]
[1746948958470,0.00872599,2497.5,2496.3,8.55]
[1746948958698,0.00872599,2497.5,2496.4,0.0400437]
[1746948959364,0.00872599,2497.5,2496.5,0.55]
[1746948959569,0.82598912,2497.9,2496.7,0.55]
[1746948959769,0.24720532,2497.4,2496.8,0.04003684]
[1746948959994,0.03458912,2498.1,2497.0,8.0]
[1746948960210,0.7914,2498.2,2497.1,0.04003685]
[1746948960409,0.24799268,2498.0,2497.3,8.0]
[1746948960710,0.7914,2498.6,2497.3,8.0]
[1746948961003,0.28723017,2498.5,2497.3,8.0]
[1746948961208,0.28723017,2498.5,2497.4,0.04003204]
[1746948961511,4.00256163,2498.4,2497.3,8.0]
[1746948961728,4.03731874,2498.3,2497.3,8.0]
[1746948961874,4.00288207,2498.2,2497.3,8.0]
[1746948962080,0.27473841,2498.1,2497.3,8.0]
[1746948962278,0.27473841,2498.1,2497.4,3.255]
[1746948962592,0.7643,2498.0,2497.4,3.29503462]
[1746948962985,0.23963647,2497.9,2497.4,3.29503462]
[1746948963318,0.27422559,2497.9,2497.4,3.255]
[1746948963622,4.00377741,2497.7,2497.2,14.416]
[1746948963915,4.0042595,2497.4,2497.3,3.255]
[1746948964121,4.0042595,2497.4,2496.6,3.25]
[1746948964122,4.00545886,2496.6,2496.4,3.255]
[1746948964284,4.04019697,2496.5,2496.4,3.255]
[1746948964483,0.04865577,2496.5,2496.4,3.255]
[1746948964806,0.01406665,2496.5,2496.4,3.255]
[1746948965181,4.03980539,2496.8,2496.4,3.255]
[1746948965381,0.25011107,2496.5,2496.4,3.255]
[1746948965569,0.23604442,2496.5,2496.4,3.255]
[1746948965769,4.24165227,2496.5,2496.4,3.255]
[1746948965990,0.23604442,2496.5,2496.4,3.255]
[1746948966173,5.06145227,2496.5,2496.4,3.255]
[1746948966383,5.06145227,2496.5,2495.9,14.413]
[1746948966384,4.00617336,2496.2,2495.9,14.413]
[1746948966595,4.04054961,2496.3,2495.9,17.668]
[1746948966773,0.23501739,2496.1,2495.9,17.668]
[1746948966980,0.03458912,2496.3,2495.9,17.668]
[1746948967197,4.25495259,2496.0,2495.9,17.668]
[1746948967402,0.03458912,2496.3,2495.9,17.668]
[1746948967615,0.24854234,2496.0,2495.9,17.668]
[1746948967774,4.00626744,2496.1,2495.9,17.668]
[1746948967971,0.28313146,2496.0,2495.9,17.668]
[1746948968611,0.24854234,2496.0,2495.9,17.668]
[1746948969778,0.03458912,2496.1,2495.9,17.668]
[1746948969978,0.01309732,2496.0,2495.9,17.668]
[1746948970222,0.03458912,2496.4,2495.9,17.668]
[1746948970385,0.8198,2496.5,2496.0,0.04006184]
[1746948970585,0.01272111,2496.3,2495.9,17.668]
[1746948970806,0.01259573,2496.4,2495.9,17.668]
[1746948970989,0.03458912,2496.7,2496.0,0.04005847]
[1746948971189,0.01272111,2496.3,2496.0,0.04005847]
[1746948971391,0.03458912,2496.7,2495.9,17.668]
[1746948971711,0.012345,2496.6,2496.0,8.0]
[1746948972114,4.01793121,2496.6,2496.0,8.0]
[1746948972315,0.03458912,2496.5,2496.1,3.255]
[1746948972626,4.01849167,2496.4,2496.2,3.255]
[1746948972837,4.04051789,2496.3,2496.2,3.255]
[1746948973192,0.28354465,2496.3,2496.2,3.255]
[1746948973432,0.24895553,2496.3,2496.2,3.255]
[1746948973792,4.28947342,2496.3,2496.2,3.255]
[1746948974014,4.28956712,2496.3,2495.9,14.413]
[1746948974224,4.00624974,2496.1,2496.0,3.255]
[1746948974401,4.04083886,2496.1,2496.0,3.255]
[1746948974826,4.05451423,2496.1,2496.0,3.255]
[1746948975430,0.04826449,2496.1,2496.0,3.255]
[1746948975626,4.05451423,2496.1,2496.0,3.255]
[1746948975841,0.01367537,2496.1,2496.0,3.255]
[1746948976192,4.24150056,2496.3,2496.0,3.255]
[1746948976509,0.23553095,2496.3,2496.0,3.255]
[1746948976709,0.01290355,2496.2,2496.0,3.255]
[1746948976911,0.23501739,2496.1,2496.0,3.255]
[1746948977222,0.03458912,2496.2,2496.0,3.255]
[1746948977424,0.03458912,2496.5,2496.0,3.255]
[1746948977736,0.8123,2496.6,2496.0,3.29506121]
[1746948978517,0.7925,2497.3,2496.1,8.0]
[1746948978833,0.03458912,2497.2,2496.2,0.0400488]
[1746948979407,0.03458912,2497.2,2496.2,0.0400495]
[1746948979815,0.03458912,2497.2,2496.1,8.0]
[1746948980022,4.7978048,2496.7,2495.4,3.256]
[1746948980219,4.00591382,2496.4,2495.4,3.256]
[1746948980418,0.03458912,2496.3,2495.4,3.256]
[1746948980708,0.01362604,2496.2,2495.5,8.0]
[1746948981014,0.01362604,2496.2,2495.6,0.04006313]
[1746948981214,0.01362604,2496.2,2495.5,8.0]
[1746948981904,0.82708912,2496.1,2494.8,14.417]
[1746948982237,3.25321152,2496.0,2494.9,8.04007163]
[1746948982425,0.03458912,2495.9,2494.9,11.29607163]
[1746948982614,4.04120367,2495.9,2494.9,11.256]
[1746948982802,0.01346237,2495.8,2494.9,11.256]
[1746948983345,4.02023549,2495.8,2495.0,0.04007211]
[1746948983506,4.0072436,2495.5,2494.9,11.256]
[1746948983701,0.44007158,2495.7,2494.9,11.256]
[1746948983702,0.0139642,2495.4,2494.9,11.256]
[1746948983931,0.0139642,2495.4,2495.0,0.04007604]
[1746948984132,0.23296232,2495.3,2495.0,0.04007604]
[1746948984338,4.04151028,2495.7,2495.0,0.04007604]
[1746948984850,0.83940217,2495.7,2495.0,0.04007604]
[1746948985067,4.00736039,2495.5,2495.0,0.04007604]
[1746948985423,0.03458912,2495.7,2495.0,0.04007604]
[1746948985625,4.00706313,2495.6,2495.0,0.04007604]
[1746948985815,0.03458912,2495.6,2495.0,0.04007604]
[1746948986032,0.7925,2496.1,2495.0,8.0]
[1746948986352,0.7807,2496.5,2495.1,0.55]
[1746948986558,0.03458912,2496.4,2495.2,0.04006085]
[1746948986763,0.81528912,2496.5,2495.2,0.04006085]
[1746948986969,4.82093815,2496.5,2495.1,0.55]
[1746948987176,0.81528912,2496.5,2495.0,8.55]
[1746948987379,3.27158912,2496.6,2495.1,0.04006088]
[1746948987548,4.00586669,2496.4,2495.0,8.55]
[1746948987882,0.23553095,2496.3,2495.3,0.55]
[1746948988098,0.24819515,2496.3,2495.5,8.0]
[1746948988369,0.03458912,2496.9,2495.7,8.0]
[1746948988544,0.23681449,2496.8,2495.8,0.04005652]
[1746948988746,0.23681449,2496.8,2495.7,8.0]
[1746948988747,0.03458912,2497.1,2495.9,0.04005191]
[1746948988935,0.23732776,2497.0,2495.9,0.04005191]
[1746948989773,0.01191207,2496.9,2496.1,8.0]
[1746948990067,0.03458912,2497.7,2496.3,8.0]
[1746948990278,4.00325166,2498.0,2496.4,0.04004116]
[1746948990450,0.23886708,2497.6,2496.4,0.04004116]
[1746948990639,1.20600723,2498.0,2496.4,0.04004116]
[1746948990833,0.23861058,2497.5,2496.5,0.55]
[1746948991075,5.24382847,2498.0,2496.7,8.0]
[1746948991258,0.23835406,2497.4,2496.9,8.0]
[1746948991582,0.23809751,2497.3,2497.0,0.04003808]
[1746948991775,4.00379335,2497.7,2496.9,8.0]
[1746948992075,0.2734562,2497.6,2496.9,8.0]
[1746948992235,7.55901074,2497.5,2496.8,3.238]
[1746948992432,0.03458912,2497.4,2496.8,3.238]
[1746948992632,1.02160075,2497.4,2496.9,0.04005019]
[1746948992863,0.03458912,2497.3,2496.8,3.238]
[1746948993070,4.03897765,2497.3,2496.9,8.0]
[1746948993236,0.23784095,2497.2,2496.9,8.0]
[1746948993571,0.03458912,2497.3,2496.9,8.0]
[1746948993757,0.23784095,2497.2,2496.9,8.0]
[1746948993959,0.03458912,2497.3,2496.9,8.0]
[1746948994163,0.23784095,2497.2,2496.9,8.0]
[1746948994364,0.03458912,2497.3,2496.9,8.0]
[1746948994675,0.23784095,2497.2,2496.9,8.0]
[1746948994980,4.03919632,2497.2,2496.9,8.0]
[1746948995179,4.00489638,2497.0,2496.7,3.238]
[1746948995474,0.23707113,2496.9,2496.7,3.238]
[1746948995853,0.23707113,2496.9,2496.2,17.655]
[1746948996067,4.00592877,2496.3,2496.2,17.655]
[1746948996265,0.03458912,2496.8,2496.2,3.238]
[1746948996465,0.23553095,2496.3,2496.2,3.238]
[1746948996669,0.03458912,2496.8,2496.2,3.238]
[1746948996886,0.23553095,2496.3,2496.2,3.238]
[1746948997066,0.03458912,2496.8,2496.2,3.238]
[1746948997266,0.23553095,2496.3,2496.2,3.238]
[1746948997470,0.03458912,2496.8,2496.2,3.238]
[1746948997651,0.23553095,2496.3,2496.2,11.238]
[1746948997846,0.03458912,2497.0,2496.3,8.0]
[1746948998185,0.03458912,2497.1,2496.4,0.04005205]
[1746948998351,0.03458912,2497.6,2496.5,22.415]
[1746948998676,4.00416433,2497.4,2496.5,22.415]
[1746948998878,0.03458912,2497.3,2496.5,22.415]
[1746948999797,0.03458912,2497.4,2496.6,0.04004664]
[1746948999963,0.03458912,2497.4,2496.5,22.415]
[1746949000160,0.03458912,2497.4,2496.6,0.04004413]
[1746949000347,0.28658355,2497.5,2496.6,0.04004413]
[1746949001086,4.00427179,2497.4,2496.5,22.415]
[1746949001291,4.0045278,2497.2,2496.5,22.415]
[1746949001646,0.03458912,2497.1,2496.5,22.415]
[1746949001867,4.00442002,2497.3,2496.5,22.415]
[1746949002049,0.03458912,2497.2,2496.5,22.415]
[1746949002244,0.28698789,2497.2,2496.5,22.415]
[1746949002449,0.25239877,2497.2,2496.6,0.04004859]
[1746949002846,4.03834869,2497.7,2496.6,0.04004859]
[1746949003093,0.03458912,2497.7,2496.6,0.04004859]
[1746949003298,0.23152307,2497.6,2496.6,0.04004859]
[1746949003487,0.03458912,2497.8,2496.6,0.04004859]
[1746949003688,4.00522695,2496.8,2495.9,3.237]
[1746949003857,0.03458912,2496.7,2495.9,3.237]
[1746949004193,0.23034376,2496.6,2495.9,3.237]
[1746949004363,0.26493288,2496.6,2495.9,3.237]
[1746949004983,4.00611647,2496.2,2495.9,3.237]
[1746949005297,0.22936248,2496.1,2495.9,3.237]
[1746949005684,4.00487797,2497.0,2495.9,3.237]
[1746949005872,0.03458912,2496.9,2495.9,3.237]
[1746949006071,0.22959247,2496.9,2496.0,0.04005422]
[1746949006278,0.22959247,2496.9,2495.9,6.463]
[1746949006582,0.22946116,2496.8,2495.9,6.463]
[1746949006787,0.26405028,2496.8,2495.9,6.463]
[1746949006965,0.22946116,2496.8,2496.0,0.04005422]
[1746949007167,0.26405028,2496.8,2495.9,6.463]
[1746949007367,0.22946116,2496.8,2495.9,6.463]
[1746949007568,4.00603661,2496.3,2496.0,3.237]
[1746949007790,0.22884487,2496.2,2496.1,3.237]
[1746949008096,0.03458912,2496.3,2496.0,3.237]
[1746949008298,0.22884487,2496.2,2496.1,3.237]
[1746949008905,0.03458912,2496.3,2496.1,3.237]
[1746949009064,0.22884487,2496.2,2496.1,3.237]
[1746949009467,4.00596667,2496.3,2496.1,3.237]
[1746949009688,0.22884487,2496.2,2496.1,3.237]
[1746949009996,4.00560785,2496.5,2496.1,3.237]
[1746949010177,4.00605292,2496.3,2496.1,3.237]
[1746949010378,0.22884487,2496.2,2496.1,3.237]
[1746949010702,4.04042337,2496.4,2496.1,3.237]
[1746949010910,0.22884487,2496.2,2496.1,3.237]
[1746949011108,0.03458912,2496.4,2496.1,11.237]
[1746949011284,0.22884487,2496.2,2496.1,11.237]
[1746949011781,0.03458912,2496.5,2496.1,11.237]
[1746949011979,4.23489419,2496.4,2496.1,3.237]
[1746949012180,0.22910761,2496.4,2496.1,3.237]
[1746949012592,0.22910761,2496.4,2496.2,0.04006062]
[1746949012913,4.03892965,2497.3,2496.2,0.04006062]
[1746949013291,0.23015818,2497.2,2496.2,0.04006062]
[1746949014436,0.23015818,2497.2,2496.1,3.237]
[1746949014600,0.23015818,2497.2,2496.2,0.55]
[1746949014783,0.03458912,2497.5,2496.1,3.237]
[1746949014983,4.23458873,2497.4,2496.1,3.237]
[1746949015212,0.03458912,2497.3,2496.1,3.237]
[1746949015418,4.03895399,2497.3,2496.1,3.237]
[1746949015623,0.23046369,2497.2,2496.2,0.59004878]
[1746949016031,0.03458912,2497.7,2496.2,0.55]
[1746949016232,0.03458912,2497.7,2496.3,0.04004239]
[1746949016522,0.19529391,2497.6,2496.2,0.55]
[1746949017111,0.19529391,2497.6,2496.5,0.55]
[1746949017283,0.19529391,2497.6,2496.7,8.0]
[1746949017491,0.03458912,2497.9,2496.9,8.0]
[1746949017795,0.19609255,2497.8,2497.0,0.04003824]
[1746949017998,0.19609255,2497.8,2497.1,0.55]
[1746949018238,4.00243092,2498.5,2497.3,8.0]
[1746949018444,0.43483221,2498.4,2497.5,8.0]
[1746949018623,0.18193381,2498.4,2497.6,0.04002895]
[1746949019108,0.03458912,2499.0,2497.6,0.04002895]
[1746949019295,0.03458912,2499.0,2497.5,8.0]
[1746949019498,0.18314645,2498.9,2497.6,0.04002467]
[1746949019722,0.03458912,2498.8,2497.6,0.04002467]
[1746949020034,0.18294184,2498.7,2497.6,0.04002467]
[1746949020336,0.18294184,2498.7,2498.0,8.0]
[1746949020531,0.18294184,2498.7,2498.2,8.0]
[1746949020732,4.00157421,2499.1,2498.3,3.221]
[1746949020940,1.07272257,2499.7,2498.4,8.04002069]
[1746949021246,0.03458912,2499.6,2498.4,8.04002069]
[1746949021449,0.20664174,2499.6,2498.4,8.04002069]
[1746949022001,0.7693,2500.0,2498.5,0.55]
[1746949022206,4.19481582,2499.9,2498.6,6.47800692]
[1746949022508,0.19455733,2499.9,2498.7,8.0]
[1746949022708,0.15996821,2499.9,2498.7,8.0]
[1746949023008,0.15996821,2499.9,2498.9,8.0]
[1746949023215,4.00077271,2499.6,2499.0,3.22]
[1746949023538,0.03458912,2499.5,2499.1,11.22]
[1746949023713,0.15944414,2499.5,2498.2,8.55]
[1746949023908,0.03458912,2499.6,2498.5,8.0]
[1746949024118,0.1593131,2499.4,2498.6,0.04001099]
[1746949024312,0.03458912,2499.6,2498.6,0.04001099]
[1746949024313,0.15944414,2499.5,2498.6,0.04001099]
[1746949024508,0.15918204,2499.3,2498.5,8.0]
[1746949024833,0.15905098,2499.2,2498.6,3.22]
[1746949025138,0.15905098,2499.2,2498.7,3.22]
[1746949025438,0.1589199,2499.1,2498.7,3.22]
[1746949025640,4.00169854,2499.0,2496.6,0.1]
[1746949025838,0.03458912,2498.9,2498.2,3.22]
[1746949026037,0.15865772,2498.9,2498.2,3.22]
[1746949026405,0.80388912,2499.3,2498.3,0.04001603]
[1746949026607,0.7693,2498.7,2497.6,3.219]
[1746949026800,0.19285349,2498.6,2497.6,3.219]
[1746949027114,0.03458912,2498.5,2496.6,0.45944117]
[1746949027315,4.002778,2498.3,2496.7,20.838]
[1746949027520,4.19521032,2498.4,2496.9,8.0]
[1746949027726,0.15773976,2498.2,2496.7,18.20930115]
[1746949028028,4.00320256,2498.0,2497.0,3.219]
[1746949028232,0.03458912,2497.9,2497.0,3.219]
[1746949028434,4.00375155,2497.7,2497.0,3.219]
[1746949028742,0.03458912,2497.8,2497.0,3.219]
[1746949028949,0.15695253,2497.6,2497.0,3.219]
[1746949029109,0.15708376,2497.7,2497.1,0.04004087]
[1746949029313,0.15682129,2497.5,2497.1,0.04004087]
[1746949029640,0.84318912,2498.1,2497.1,0.04004087]
[1746949029815,0.84318912,2498.1,2497.1,0.04003525]
[1746949030018,0.15747739,2498.0,2497.1,0.04003525]
[1746949030552,0.15747739,2498.0,2497.0,3.219]
[1746949030755,0.19206651,2498.0,2497.0,3.219]
[1746949030949,0.15747739,2498.0,2497.1,0.04003531]
[1746949031247,0.15734619,2497.9,2497.0,3.219]
[1746949031455,0.15734619,2497.9,2497.2,0.04003527]
[1746949031601,3.213,2498.3,2497.2,0.04003527]
[1746949031809,0.15773976,2498.2,2497.0,3.219]
[1746949032007,0.03458912,2498.1,2497.0,3.219]
[1746949032207,0.15577798,2498.0,2497.0,3.219]
[1746949032454,4.15905314,2498.0,2497.1,0.04003534]
[1746949032755,0.03458912,2497.9,2497.1,0.04003534]
[1746949032922,4.0379736,2497.9,2497.1,0.04003534]
[1746949033123,4.15734356,2497.8,2497.1,0.04003534]
[1746949033342,4.15734356,2497.8,2497.0,3.219]
[1746949033535,0.03458912,2497.7,2496.7,14.405]
[1746949033777,10.72302425,2497.6,2496.8,3.22]
[1746949034065,4.00480915,2497.0,2496.8,3.22]
[1746949034270,0.7784,2497.2,2496.8,3.22]
[1746949034431,0.1524029,2496.9,2496.8,3.22]
[1746949034623,0.03458912,2497.1,2496.8,3.22]
[1746949034829,0.1524029,2496.9,2496.8,11.26004992]
[1746949035057,0.03458912,2497.4,2496.9,8.0]
[1746949035263,12.00299186,2498.2,2496.9,8.0]
[1746949035264,3.50711074,2498.4,2496.9,8.0]
[1746949035440,0.15184587,2497.3,2497.1,8.0]
[1746949035641,0.03458912,2497.9,2497.1,8.0]
[1746949035847,0.03458912,2497.9,2497.2,0.0400387]
[1746949036047,0.15252141,2497.8,2497.1,8.0]
[1746949036238,0.03458912,2497.9,2497.1,8.0]
[1746949036439,0.15239019,2497.7,2497.1,8.0]
[1746949036639,0.15252141,2497.8,2497.1,8.0]
[1746949036834,0.15225895,2497.6,2497.1,8.0]
[1746949037175,4.00384368,2497.6,2497.1,8.0]
[1746949037470,4.19086372,2497.5,2497.1,8.0]
[1746949037626,4.19075477,2497.5,2496.7,14.405]
[1746949037825,4.19075477,2497.5,2496.1,0.2943313]
[1746949037826,4.00477522,2497.1,2496.8,3.22]
[1746949038025,0.03458912,2497.3,2496.8,3.22]
[1746949038256,0.152341,2497.0,2496.8,3.22]
[1746949038463,4.03896262,2497.3,2496.8,3.22]
[1746949038663,0.15220969,2496.9,2496.8,3.22]
[1746949038861,0.03458912,2497.3,2496.8,3.22]
[1746949039032,0.15220969,2496.9,2496.8,3.22]
[1746949039225,0.03458912,2497.4,2496.8,3.22]
[1746949039465,0.15220969,2496.9,2496.8,3.22]
[1746949039633,0.52022756,2497.4,2496.8,3.22]
[1746949039634,4.00443973,2497.3,2496.8,3.22]
[1746949039830,0.15120473,2496.9,2496.8,3.22]
[1746949040057,4.00465942,2497.1,2496.8,3.22]
[1746949040271,0.15120473,2496.9,2496.8,3.22]
[1746949040569,0.03458912,2497.0,2496.8,3.22]
[1746949040801,4.15617088,2496.9,2496.8,3.22]
[1746949041100,4.15617088,2496.9,2496.1,14.408]
[1746949041101,4.00603983,2496.3,2496.1,3.22]
[1746949041394,0.03458912,2496.6,2496.1,3.22]
[1746949041791,0.15027343,2496.5,2496.1,3.22]
[1746949042590,0.03458912,2496.4,2496.1,3.22]
[1746949042780,0.15001071,2496.3,2496.1,3.22]
[1746949043153,0.03458912,2496.6,2496.1,3.22]
[1746949043355,6.71711074,2497.1,2496.1,3.22]
[1746949043356,0.14607814,2496.5,2496.2,8.04005816]
[1746949043548,0.81418912,2497.4,2496.2,8.04005816]
[1746949043795,0.14712862,2497.3,2496.2,8.04005816]
[1746949044163,0.14712862,2497.3,2496.3,0.55]
[1746949044396,0.03458912,2497.9,2496.5,0.55]
[1746949044565,0.14778484,2497.8,2496.7,8.55]
[1746949044769,0.81418912,2498.4,2496.9,8.0]
[1746949045100,4.00288207,2498.2,2497.0,0.04003984]
[1746949045264,0.03458912,2498.1,2497.0,0.04003984]
[1746949045471,0.14817844,2498.1,2497.0,0.55]
[1746949045668,0.14817844,2498.1,2496.9,8.0]
[1746949045885,4.003173,2498.1,2496.9,8.0]
[1746949046079,0.18263637,2498.0,2496.9,8.0]
[1746949046297,0.14804725,2498.0,2497.0,0.04003516]
[1746949046453,0.14804725,2498.0,2496.9,8.0]
[1746949046797,0.03458912,2498.1,2497.0,0.04003511]
[1746949047157,0.14804725,2498.0,2496.9,8.0]
[1746949047690,0.14804725,2498.0,2497.0,0.04003514]
[1746949048088,0.14804725,2498.0,2497.1,0.55]
[1746949048388,0.7608,2499.2,2497.2,0.04002949]
[1746949048389,4.00182139,2498.9,2497.2,0.04002949]
[1746949048590,0.64770174,2498.8,2497.2,0.04002949]
[1746949048767,4.17345464,2498.8,2497.2,0.04002949]
[1746949048969,4.00209903,2498.7,2497.2,0.04002949]
[1746949049295,0.17117735,2498.6,2497.2,0.04002949]
[1746949049789,0.03458912,2498.6,2497.2,0.04002949]
[1746949050094,4.00201201,2498.8,2497.2,0.33601261]
[1746949050291,4.00224125,2498.6,2497.2,0.33601261]
[1746949050494,4.44035181,2498.7,2497.2,0.29598312]
[1746949050495,0.7608,2498.4,2497.2,0.29598312]
[1746949050679,0.03458912,2498.3,2496.8,14.411]
[1746949050882,0.55,2498.2,2496.9,6.414]
[1746949051086,0.03458912,2498.1,2496.9,6.45403596]
[1746949051258,1.04734168,2498.1,2496.9,3.24803596]
[1746949051590,1.04734168,2498.1,2497.1,8.0]
[1746949051794,0.1743098,2498.1,2497.2,0.04003562]
[1746949052093,0.1743098,2498.1,2496.8,14.411]
[1746949052269,4.0035231,2497.8,2496.9,6.414]
[1746949052472,0.03458912,2497.7,2497.0,3.208]
[1746949052796,0.17378497,2497.7,2497.0,3.208]
[1746949052986,0.13919585,2497.7,2497.1,0.04003945]
[1746949053157,0.13919585,2497.7,2497.0,3.208]
[1746949053359,0.8225,2497.1,2495.2,0.29800289]
[1746949053574,4.82877289,2496.1,2495.3,3.208]
[1746949053800,0.17072202,2496.0,2495.3,3.208]
[1746949054365,0.17072202,2496.0,2495.1,0.04006995]
[1746949054600,4.00690424,2495.7,2495.2,3.208]
[1746949054779,0.13411937,2495.6,2495.2,3.208]
[1746949055104,0.03458912,2495.8,2495.2,3.208]
[1746949055264,0.13245981,2495.5,2495.2,3.208]
[1746949055466,0.03458912,2495.8,2495.2,3.208]
[1746949055664,0.13232835,2495.4,2495.2,3.208]
[1746949055899,0.03458912,2495.8,2495.2,3.208]
[1746949056106,0.13161633,2495.3,2495.2,11.208]
[1746949056287,0.03458912,2495.9,2495.2,11.208]
[1746949056486,0.8225,2496.1,2495.3,8.0]
[1746949056688,12.55560193,2496.6,2495.3,8.0]
[1746949056689,0.12747359,2495.8,2495.3,8.0]
[1746949057017,0.12734216,2495.7,2495.3,8.0]
[1746949057167,0.7657,2496.4,2495.3,8.0]
[1746949057496,0.12813059,2496.3,2495.3,8.0]
[1746949058069,0.16271971,2496.3,2495.4,0.04006478]
[1746949058499,0.12813059,2496.3,2495.4,0.04006478]
[1746949059264,0.03458912,2496.6,2495.4,0.04006478]
[1746949059474,0.12888933,2496.2,2495.3,8.0]
[1746949059795,0.03458912,2496.4,2495.4,0.04006072]
[1746949059973,0.12902071,2496.3,2495.4,0.04006072]
[1746949060173,0.03458912,2496.8,2495.4,0.04006072]
[1746949060370,0.12954612,2496.7,2495.5,0.55]
[1746949060607,0.12954612,2496.7,2495.6,0.04005971]
[1746949060806,0.12954612,2496.7,2495.8,8.0]
[1746949061015,4.13488971,2496.7,2496.0,8.0]
[1746949061178,4.04014255,2496.6,2495.9,3.209]
[1746949061505,0.54652315,2496.5,2495.9,3.209]
[1746949061711,0.54652315,2496.5,2494.8,3.50711074]
[1746949061712,4.00732011,2495.5,2494.8,3.209]
[1746949061917,6.71111074,2495.5,2494.8,3.209]
[1746949062091,0.12706392,2495.4,2494.8,3.209]
[1746949062276,0.12706392,2495.4,2494.9,0.04007567]
[1746949062776,0.49475943,2495.4,2494.8,3.209]
[1746949062974,0.49475943,2495.4,2494.9,0.04007843]
[1746949062975,0.12706392,2495.4,2494.9,0.04007843]
[1746949063228,0.12706392,2495.4,2494.9,8.04007843]
[1746949065184,0.12706392,2495.4,2494.9,8.0]
[1746949065417,0.03458912,2495.8,2494.9,8.0]
[1746949065581,0.11745828,2495.7,2495.0,0.04007149]
[1746949065795,0.7972,2495.9,2494.9,8.0]
[1746949065995,0.11758971,2495.8,2494.9,0.55]
[1746949066432,0.11758971,2495.8,2495.0,0.04006579]
[1746949066637,3.203,2496.2,2495.0,0.04006579]
[1746949066820,0.10716588,2496.1,2495.0,0.04006579]
[1746949068138,0.10716588,2496.1,2495.2,0.55]
[1746949068437,0.7972,2496.7,2495.3,0.04005829]
[1746949068646,0.13216942,2496.6,2495.4,14.416]
[1746949068811,0.57581744,2496.6,2495.5,8.0]
[1746949069227,0.57581744,2496.6,2495.6,0.04006055]
[1746949069401,0.13216942,2496.6,2495.7,3.21]
[1746949069740,0.7972,2496.4,2495.8,8.04005862]
[1746949070039,0.09770859,2496.3,2495.9,0.04005865]
[1746949070405,0.09770859,2496.3,2495.8,8.0]
[1746949070833,0.13229771,2496.3,2495.8,8.0]
[1746949071036,0.09770859,2496.3,2495.8,8.04006215]
[1746949072642,0.09770859,2496.3,2495.8,8.0]
[1746949074525,0.09770859,2496.3,2495.9,0.04006149]
[1746949075122,0.13229771,2496.3,2495.8,8.0]
[1746949075365,0.7968,2496.2,2495.7,3.21]
[1746949075658,0.7968,2495.9,2495.5,3.21]
[1746949075863,0.03458912,2495.8,2495.5,3.21]
[1746949076027,0.13164071,2495.8,2495.5,3.21]
[1746949076642,0.09705159,2495.8,2495.5,3.21]
[1746949076846,0.03458912,2496.0,2495.5,3.21]
[1746949076847,0.7968,2495.7,2495.6,8.0]
[1746949077164,0.7968,2495.7,2495.5,3.21]
[1746949077342,0.7968,2495.7,2495.6,3.2]
[1746949077733,0.03458912,2496.2,2495.6,3.2]
[1746949077931,0.8142,2495.9,2495.6,3.2]
[1746949078473,0.8142,2495.9,2495.6,3.24006598]
[1746949078668,0.8142,2495.9,2495.6,3.2]
[1746949078876,0.8142,2495.9,2495.7,3.2]
[1746949079055,0.8142,2495.9,2495.8,8.0]
[1746949079233,0.8142,2496.2,2495.8,8.0]
[1746949079434,0.082492,2496.1,2495.8,8.0]
[1746949079872,0.11708112,2496.1,2495.7,3.2]
[1746949080168,0.11708112,2496.1,2495.6,3.2]
[1746949080169,4.82070209,2496.0,2495.6,3.2]
[1746949080334,0.52836744,2495.9,2495.6,3.2]
[1746949080528,0.11681831,2495.9,2495.6,3.2]
[1746949081867,0.11681831,2495.9,2495.7,3.2]
[1746949082171,0.08222919,2495.9,2495.8,8.04007102]
[1746949082575,0.41774024,2497.7,2495.8,8.0]